Workbook

Sheet Remove
A1: Number | B1: Feat Name | C1: Feat Number
A2: 1 | B2: Blood of the Warlord | C2: 4608
A3: =A2+1 -> 2 | B3: Chosen of Iborighu | C3: 4248
A4: =A3+1 -> 3 | B4: Disciple of Darkness | C4: 4012
A5: 4 | B5: Heavy Lithoderms | C5: 24050
A6: 5 | B6: Menacing Demeanour | C6: 24053
A7: 6 | B7: Servant of the Heavens | C7: 3355
A8: 7 | B8: Shadow Weave | C8: 2960
A9: 8 | B9: Spellfire Wielder | C9: 4368
A10: 9 | B10: Thrall to Demon | C10: 2616
A11: 10 | B11: True Lycanthrope | C11: 3520
A12: 11 | B12: Truename Training | C12: 2715
A13: 12 | B13: Vremyonni Training | C13: 5367
A14: 13 | B14: Font of Inspiration (?) | C14: 5339
A15: 14 | B15: Catfolk Pounce | C15: 5203
A16: 15 | B16: Becon the Frozen | C16: 4247
A17: 16 | B17: Ethran | C17: 2567
A18: 17 | B18: Faith in the Frost | C18: 4249
A19: 18 | B19: Frozen Magic | C19: 5238
A20: 19 | B20: Jergal's Pact | C20: 24043
A21: 20 | B21: Lolth's Boon | C21: 5279
A22: 21 | B22: Lolth' Meat | C22: 2441
A23: 22 | B23: Dragonthrall | C23: 3989
A24: 23 | B24: Dragonfriend | C24: 3988
B25: Double Draconic Aura
B27: Dragonwrought | C27: 62 | D27: Masterfeat | F27: 3843-3855
B28: Incanrum Feats | C28: 53 | D28: Master | F28: 8869-8914, 8932-8950

Sheet Change
A1: Number | B1: Feat Name | C1: Feat Number | D1: Master | E1: TLK Number | F1: Magic Number | G1: TLK Row | H1: New Name
A2: 1 | B2: Great Stag Berzerker | C2: 3511 | E2: 16834609 | F2: 16777216 | G2: =SUM(E2-F2) -> 57393 | H2: Rampager Berzerker
A3: =A2+1 -> 2 | B3: Jotunbrud | C3: 5176 | E3: 16836470 | F3: 16777216 | G3: =SUM(E3-F3) -> 59254 | H3: Quartergiant
A4: =A3+1 -> 3 | B4: Rhino Tribe Charge | C4: 3508 | E4: 16834603 | F4: 16777216 | G4: 57387 | H4: Drik Tribe Charge
A5: 4 | B5: Snow Tiger Berzerker | C5: 3572 | E5: 16834613 | F5: 16777216 | G5: 57397 | H5: Mantis Berserker
A6: 5 | B6: Cormanthyran Moon Magic | C6: 24042 | E6: 16847331 | F6: 16777216 | G6: 70115 | H6: Child of Ral & Guthay
A7: 6 | B7: Despana School | C7: 5324 | E7: 16836696 | F7: 16777216 | G7: 59480 | H7: Conjured Contusions
A8: 7 | B8: Ice Troll Berzerker | C8: 5321 | E8: 16826798 | F8: 16777216 | G8: 49582 | H8: Braxat Berzerker
A9: 8 | B9: Inlindl School | C9: 5284 | E9: 16834993 | F9: 16777216 | G9: 57777 | H9: Reckless Strike
A10: 9 | B10: Snowflake Wardance | C10: 4489 | E10: 16834967 | F10: 16777216 | G10: 57751 | H10: Jaszt's Dance
A11: 10 | B11: Lichloved | C11: 3393 | E11: 16822861 | F11: 16777216 | G11: 45645 | H11: T'lizfriend
A12: 11 | B12: Light of Aurifar | C12: 5264 | E12: 16835031 | F12: 16777216 | G12: 57815 | H12: Purity of the Crimson Sun
A13: 12 | B13: Moradin's Smile | C13: 24051 | E13: 16847349 | F13: 16777216 | G13: 70133 | H13: Kemalok's Grace
A14: 13 | B14: Vae School | C14: 5285 | E14: 16834991 | F14: 16777216 | G14: =SUM(E14-F14) -> 57775 | H14: Leg Whip
A15: 14 | B15: Xaniqos School | C15: 5277 | E15: 16835007 | F15: 16777216 | G15: 57791 | H15: Piercing Momentum
B18: Draconic Feats | C18: 60 | D18: Master | E18: 16832502 | F18: 16777216 | G18: =SUM(E18-F18) -> 55286 | H18: Drake Feats
B20: Dragonfire_Assault | C20: 1842 | D20: 60 | E20: 16832846 | F20: 16777216 | G20: =SUM(E20-F20) -> 55630 | H20: Elemental Assault
B21: Dragonfire_Channeling | C21: 1843 | D21: 60 | E21: 16832848 | F21: 16777216 | G21: =SUM(E21-F21) -> 55632 | H21: Elemental Channelling
B22: Dragonfire_Inspiration | C22: 1844 | D22: 60 | E22: 16832844 | F22: 16777216 | G22: 55628 | H22: Elemental Inspiration
B24: Draconic_Skin | C24: 3887 | D24: 60 | E24: 16832537 | F24: 16777216 | G24: =SUM(E24-F24) -> 55321 | H24: Drake's Hide
B25: Draconic_Knowledge | C25: 3888 | D25: 60 | E25: 16832539 | F25: 16777216 | G25: 55323 | H25: Drake's Wisdom
B26: Draconic_Vigor | C26: 3890 | D26: 60 | E26: 16832543 | F26: 16777216 | G26: 55327 | H26: Drake's Vigor
B27: Draconic_Armor | C27: 3891 | D27: 60 | E27: 16832545 | F27: 16777216 | G27: 55329 | H27: Drake's Armor
B28: Draconic_Persuasion | C28: 3892 | D28: 60 | E28: 16832547 | F28: 16777216 | G28: 55331 | H28: Drake's Persuasion
B29: Draconic_Claw | C29: 3893 | D29: 60 | E29: 16832549 | F29: 16777216 | G29: 55333 | H29: Drake's Claw
B30: Draconic_Presence | C30: 3894 | D30: 60 | E30: 16832551 | F30: 16777216 | G30: 55335 | H30: Drake's Presence
B31: Draconic_Power | C31: 3895 | D31: 60 | E31: 16832553 | F31: 16777216 | G31: 55337 | H31: Drake's Power
B32: Draconic_Resistance | C32: 3896 | D32: 60 | E32: 16832555 | F32: 16777216 | G32: 55339 | H32: Drake's Resistance
B33: Draconic_Senses | C33: 3897 | D33: 60 | E33: 16832557 | F33: 16777216 | G33: 55341 | H33: Drake's Senses
B34: Draconic_Arcane_Grace | C34: 3898 | D34: 60 | E34: 16832559 | F34: 16777216 | G34: 55343 | H34: Drake's Arcane Grace
B35: Draconic_Breath | C35: 3899 | D35: 60 | E35: 16832561 | F35: 16777216 | G35: 55345 | H35: Elemental Attack
B36: Draconic_Arcane_Grace_1-5 | C36: 3900 | D36: 60 | E36: 16832563 | F36: 16777216 | G36: 55347 | H36: Drake's Arcane Grace
B37: Draconic_Breath_1-5 | C37: 3901 | D37: 60 | E37: 16832564 | F37: 16777216 | G37: 55348 | H37: Elemental Attack
B38: Draconic_Arcane_Grace_6-9 | C38: 3902 | D38: 60 | E38: 16832583 | F38: 16777216 | G38: 55367 | H38: Drake's Arcane Grace
B39: Draconic_Breath_6-9 | C39: 3903 | D39: 60 | E39: 16832584 | F39: 16777216 | G39: 55368 | H39: Elemental Attack
B40: Dragonfire_Strike | C40: 3949 | D40: 60 | E40: 16832690 | F40: 16777216 | G40: 55474 | H40: Drake's Elemental Strike
B43: Draconic Heritage | C43: 59 | D43: Master | E43: 16832504 | F43: 16777216 | G43: =SUM(E43-F43) -> 55288 | H43: Drake Heritage
B45: Draconic_Heritage_Black | C45: 3872 | D45: 59 | E45: 16832506 | F45: 16777216 | G45: =SUM(E45-F45) -> 55290 | H45: Earth
B46: Draconic_Heritage_Blue | C46: 3873 | D46: 59 | E46: 16832508 | F46: 16777216 | G46: 55292 | H46: Rain
B47: Draconic_Heritage_Green | C47: 3874 | D47: 59 | E47: 16832510 | F47: 16777216 | G47: 55294 | H47: Silt
B48: Draconic_Heritage_Red | C48: 3875 | D48: 59 | E48: 16832512 | F48: 16777216 | G48: 55296 | H48: Fire
B49: Draconic_Heritage_White | C49: 3876 | D49: 59 | E49: 16832514 | F49: 16777216 | G49: 55298 | H49: Water
B50: Draconic_Heritage_Amethyst | C50: 3877 | D50: 59 | E50: 16832516 | F50: 16777216 | G50: 55300 | H50: REMOVE
B51: Draconic_Heritage_Crystal | C51: 3878 | D51: 59 | E51: 16832518 | F51: 16777216 | G51: 55302 | H51: Sun
B52: Draconic_Heritage_Emerald | C52: 3879 | D52: 59 | E52: 16832520 | F52: 16777216 | G52: 55304 | H52: Air
B53: Draconic_Heritage_Sapphire | C53: 3880 | D53: 59 | E53: 16832522 | F53: 16777216 | G53: 55306 | H53: Remove
B54: Draconic_Heritage_Topaz | C54: 3881 | D54: 59 | E54: 16832524 | F54: 16777216 | G54: 55308 | H54: REMOVE
B55: Draconic_Heritage_Brass | C55: 3882 | D55: 59 | E55: 16832526 | F55: 16777216 | G55: 55310 | H55: REMOVE
B56: Draconic_Heritage_Bronze | C56: 3883 | D56: 59 | E56: 16832528 | F56: 16777216 | G56: 55312 | H56: REMOVE
B57: Draconic_Heritage_Copper | C57: 3884 | D57: 59 | E57: 16832530 | F57: 16777216 | G57: 55314 | H57: REMOVE
B58: Draconic_Heritage_Gold | C58: 3885 | D58: 59 | E58: 16832532 | F58: 16777216 | G58: 55316 | H58: Magma
B59: Draconic_Heritage_Silver | C59: 3886 | D59: 59 | E59: 16832534 | F59: 16777216 | G59: 55318 | H59: REMOVE
B63: Extra Draconic Auras | C63: 73 | D63: Master | E63: 16832802 | F63: 16777216 | G63: =SUM(E63-F63) -> 55586
B65: Bonus_Aura_Energy_Acid | C65: 1828 | D65: 73 | E65: 16832900 | F65: 16777216 | G65: =SUM(E65-F65) -> 55684 | H65: REMOVE
B66: Bonus_Aura_Energy_Cold | C66: 1829 | D66: 73 | E66: 16832901 | F66: 16777216 | G66: 55685 | H66: REMOVE
B67: Bonus_Aura_Energy_Elec | C67: 1830 | D67: 73 | E67: 16832902 | F67: 16777216 | G67: 55686 | H67: REMOVE
B68: Bonus_Aura_Energy_Fire | C68: 1831 | D68: 73 | E68: 16832903 | F68: 16777216 | G68: 55687 | H68: REMOVE
B69: Bonus_Aura_Magic_Power | C69: 1840 | D69: 73 | E69: 16832851 | F69: 16777216 | G69: 55635 | H69: REMOVE
B70: Bonus_Aura_Insight | C70: 1884 | D70: 73 | E70: 16832784 | F70: 16777216 | G70: 55568 | H70: REMOVE
B71: Bonus_Aura_Presence | C71: 1885 | D71: 73 | E71: 16832785 | F71: 16777216 | G71: 55569 | H71: REMOVE
B72: Bonus_Aura_Resistance_Acid | C72: 1886 | D72: 73 | E72: 16832786 | F72: 16777216 | G72: 55570 | H72: REMOVE
B73: Bonus_Aura_Resistance_Cold | C73: 1887 | D73: 73 | E73: 16832794 | F73: 16777216 | G73: 55578 | H73: REMOVE
B74: Bonus_Aura_Resistance_Electricity | C74: 1888 | D74: 73 | E74: 16832795 | F74: 16777216 | G74: 55579 | H74: REMOVE
B75: Bonus_Aura_Resistance_Fire | C75: 1889 | D75: 73 | E75: 16832796 | F75: 16777216 | G75: 55580 | H75: REMOVE
B76: Bonus_Aura_Resolve | C76: 1890 | D76: 73 | E76: 16832787 | F76: 16777216 | G76: 55571 | H76: REMOVE
B77: Bonus_Aura_Senses | C77: 1891 | D77: 73 | E77: 16832788 | F77: 16777216 | G77: 55572 | H77: REMOVE
B78: Bonus_Aura_Stamina | C78: 1892 | D78: 73 | E78: 16832789 | F78: 16777216 | G78: 55573 | H78: REMOVE
B79: Bonus_Aura_Swiftness | C79: 1893 | D79: 73 | E79: 16832790 | F79: 16777216 | G79: 55574 | H79: REMOVE
B80: Bonus_Aura_Toughness | C80: 1894 | D80: 73 | E80: 16832791 | F80: 16777216 | G80: 55575 | H80: REMOVE
B82: Metabreath Feats | C82: 75 | D82: Master | E82: 16832867 | F82: 16777216 | G82: =SUM(E82-F82) -> 55651 | H82: Metaelement Feats
B84: Clinging_Breath | C84: 4966 | D84: 75 | E84: 16832879 | F84: 16777216 | G84: =SUM(E84-F84) -> 55663 | H84: Clinging Element
B85: Lingering_Breath | C85: 4967 | D85: 75 | E85: 16832881 | F85: 16777216 | G85: 55665 | H85: Lingering Element
B86: Enlarge_Breath | C86: 4968 | D86: 75 | E86: 16832857 | F86: 16777216 | G86: 55641 | H86: Enlarge Element
B87: Heighten_Breath | C87: 4969 | D87: 75 | E87: 16832877 | F87: 16777216 | G87: 55661 | H87: Heighten Element
B88: Maximize_Breath | C88: 4970 | D88: 75 | E88: 16832859 | F88: 16777216 | G88: 55643 | H88: Maximize Element
B89: Recover_Breath | C89: 4971 | D89: 75 | E89: 16832861 | F89: 16777216 | G89: 55645 | H89: Recover Elemental Energy
B90: Shape_Breath | C90: 4972 | D90: 75 | E90: 16832863 | F90: 16777216 | G90: 55647 | H90: Shape Element
B91: Spreading_Breath | C91: 4973 | D91: 75 | E91: 16832873 | F91: 16777216 | G91: 55657 | H91: Spreading Element
B92: Tempest_Breath | C92: 4974 | D92: 75 | E92: 16832875 | F92: 16777216 | G92: 55659 | H92: Elemental Tempest
B95: Breath Channeling Feats | C95: 76 | D95: Master | E95: 16832869 | F95: 16777216 | G95: =SUM(E95-F95) -> 55653 | H95: Elemental Channeling Feats
B97: Entangling_Exhalation | C97: 4975 | D97: 76 | E97: 16832871 | F97: 16777216 | G97: =SUM(E97-F97) -> 55655 | H97: Entangling Element
B98: Exhaled_Barrier | C98: 4976 | D98: 76 | E98: 16832883 | F98: 16777216 | G98: 55667 | H98: Elemental Barrier
B99: Exhaled_Immunity | C99: 4977 | D99: 76 | E99: 16832865 | F99: 16777216 | G99: 55649 | H99: Elemental Immunity
B101: Dragon Tail | C101: 8795 | E101: 16838280 | F101: 16777216 | G101: =SUM(E101-F101) -> 61064 | H101: Drake Tail
B102: Dragon Tail | C102: 3837 | E102: 16832404 | F102: 16777216 | G102: =SUM(E102-F102) -> 55188 | H102: Drake Tail
B103: Dragon Wings | C103: 3839 | E103: 16832406 | F103: 16777216 | G103: 55190 | H103: Drake Wings
B113: Shadowstrike
B114: Shadowform Familiar
B116: Dragonsong
B118: Double Draconic Aura
